bitfinex-derivatives/quotes_SOLF0:USTF0_20250818
["timestamp","ask_amount","ask_price","bid_price","bid_amount"]
[1755537497566,135.52,183.54,183.51,2.24]
[1755537497769,3.9955347,183.53,183.51,2.24]
[1755537497970,135.52,183.54,183.51,2.24]
[1755537498172,3.99543384,183.53,183.52,5.446]
[1755537498670,2.96,183.56,183.52,5.446]
[1755537498972,3.99551117,183.55,183.53,2.24]
[1755537499272,3.99551117,183.54,183.53,2.24]
[1755537499672,3.99551117,183.54,183.52,9.253175]
[1755537499866,138.48,183.58,183.52,9.253175]
[1755537500066,3.99562977,183.57,183.52,9.253175]
[1755537500270,2.96,183.55,183.52,9.253175]
[1755537500568,3.99562977,183.54,183.52,9.253175]
[1755537500768,2.96,183.55,183.53,5.4457]
[1755537500973,3.99577767,183.54,183.53,5.4457]
[1755537501175,3.99577767,183.54,183.52,3.807175]
[1755537501472,2.96,183.55,183.52,3.807175]
[1755537501673,3.99595015,183.54,183.52,9.253075]
[1755537501864,2.96,183.55,183.52,9.253075]
[1755537502068,3.99595015,183.54,183.53,7.6857]
[1755537502270,3.99595015,183.54,183.53,5.4457]
[1755537502575,3.99595015,183.54,183.53,7.6857]
[1755537504573,3.99595015,183.54,183.53,5.4457]
[1755537504870,3.99595015,183.54,183.5,3.807175]
[1755537505168,3.99624989,183.53,183.51,2.24]
[1755537505373,138.46,183.58,183.51,5.4462]
[1755537505576,6.93625088,183.57,183.51,5.4462]
[1755537505879,3.99625088,183.56,183.5,3.807175]
[1755537506080,6.93625088,183.55,183.51,2.24]
[1755537506267,3.99625088,183.54,183.52,5.446]
[1755537506471,2.94,183.55,183.52,5.446]
[1755537506679,3.99625336,183.54,183.52,5.446]
[1755537506882,2.94,183.55,183.52,5.446]
[1755537507077,3.99625336,183.54,183.52,5.446]
[1755537507268,2.94,183.54,183.51,7.6863]
[1755537507470,3.99636194,183.53,183.5,3.807175]
[1755537507673,2.94,183.53,183.5,3.807175]
[1755537508381,2.94,183.57,183.5,6.047175]
[1755537508682,3.99658438,183.56,183.5,6.047175]
[1755537508878,3.99658438,183.55,183.53,7.6855]
[1755537509079,3.99658438,183.54,183.53,7.6855]
[1755537509278,2.94,183.57,183.53,7.6855]
[1755537509476,3.99630686,183.56,183.53,7.6855]
[1755537509681,3.99630686,183.55,183.53,7.6855]
[1755537509874,3.99630686,183.54,183.53,7.6855]
[1755537510477,3.99630686,183.54,183.53,11.492675]
[1755537512785,135.52,183.58,183.55,2.24]
[1755537512979,3.99562505,183.57,183.55,2.24]
[1755537513178,3.99562505,183.56,183.53,3.807175]
[1755537513377,2.94,183.62,183.54,2.24]
[1755537513685,2.94,183.6,183.56,6.047175]
[1755537513876,3.99518775,183.59,183.56,6.047175]
[1755537514076,3.99518775,183.58,183.57,5.4445]
[1755537514280,3.99518775,183.58,183.57,7.6845]
[1755537514984,2.94,183.63,183.58,5.4443]
[1755537515172,50.0,183.64,183.48,3.807175]
[1755537515173,3.99359345,183.62,183.59,3.807175]
[1755537515479,3.45642247,183.65,183.59,3.807175]
[1755537515679,3.99191571,183.64,183.59,3.807175]
[1755537515875,3.99191571,183.63,183.61,2.24]
[1755537516081,3.45642247,183.65,183.61,2.24]
[1755537516286,3.9916361,183.64,183.63,2.24]
[1755537516678,0.51642247,183.65,183.63,2.24]
[1755537517083,0.51642247,183.65,183.64,7.6825]
[1755537518074,2.94,183.69,183.65,3.807175]
[1755537518274,3.98516566,183.68,183.66,3.807175]
[1755537518481,2.02343,183.7,183.66,3.807175]
[1755537518684,6.92213245,183.69,183.66,3.807175]
[1755537518976,3.98213245,183.68,183.66,3.807175]
[1755537519174,2.94,183.69,183.65,11.489275]
[1755537519380,2.02343,183.7,183.65,3.807175]
[1755537519586,2.02343,183.7,183.68,6.047175]
[1755537519980,2.02343,183.7,183.68,11.488275]
[1755537520690,2.02343,183.7,183.69,5.441]
[1755537520987,2.02343,183.7,183.69,7.681]
[1755537521178,2.02343,183.7,183.69,5.441]
[1755537521488,2.02343,183.7,183.67,2.24]
[1755537521784,4.96343,183.7,183.66,3.807175]
[1755537521987,2.02343,183.7,183.68,2.24]
[1755537522185,2.02343,183.7,183.66,3.807175]
[1755537522479,2.02343,183.7,183.67,2.24]
[1755537522685,4.96343,183.7,183.66,6.047175]
[1755537523184,4.96343,183.7,183.66,11.488875]
[1755537523375,2.02343,183.7,183.66,3.807175]
[1755537523580,2.02343,183.7,183.67,2.24]
[1755537523881,2.94,183.69,183.64,3.807175]
[1755537524076,2.02343,183.7,183.63,2.24]
[1755537524281,2.94,183.67,183.64,3.807175]
[1755537524482,2.02343,183.7,183.64,3.807175]
[1755537524683,2.02343,183.7,183.68,6.047175]
[1755537524984,2.02343,183.7,183.69,5.441]
[1755537525585,2.02343,183.7,183.69,7.681]
[1755537526382,2.02343,183.7,183.68,3.807175]
[1755537526383,2.94,183.74,183.7,2.24]
[1755537526583,2.94,183.74,183.71,3.807175]
[1755537526800,20.177175,183.78,183.63,3.807175]
[1755537527095,6.747175,183.76,183.65,5.4421]
[1755537527286,2.94,183.74,183.66,3.807175]
[1755537527585,50.0,183.77,183.69,3.807175]
[1755537527586,2.94,183.76,183.69,3.807175]
[1755537527782,3.95249946,183.75,183.66,3.807175]
[1755537527977,2.94,183.73,183.67,5.4416]
[1755537528990,2.94,183.73,183.66,3.807175]
[1755537529987,2.94,183.73,183.67,5.4414]
[1755537530689,2.94,183.73,183.66,3.807175]
[1755537531084,2.94,183.73,183.68,5.4411]
[1755537531292,2.94,183.71,183.67,2.24]
[1755537531491,2.94,183.76,183.67,2.24]
[1755537531693,3.94814669,183.75,183.67,2.24]
[1755537531989,2.94,183.75,183.69,3.807175]
[1755537532291,50.0,183.77,183.7,2.24]
[1755537533287,3.09,183.76,183.7,2.24]
[1755537533695,3.09,183.76,183.71,5.4403]
[1755537533899,3.09,183.76,183.69,3.807175]
[1755537535197,50.0,183.77,183.71,5.4402]
[1755537535398,3.09,183.75,183.71,5.4402]
[1755537535597,3.09,183.74,183.71,5.4402]
[1755537536007,50.0,183.77,183.71,5.4402]
[1755537536199,50.0,183.77,183.72,5.4401]
[1755537536200,3.09,183.76,183.72,5.4401]
[1755537536392,3.09,183.75,183.72,5.4401]
[1755537537294,3.09,183.76,183.71,5.4404]
[1755537537494,50.0,183.77,183.69,6.047175]
[1755537537694,3.09,183.75,183.69,6.047175]
[1755537537998,3.09,183.74,183.69,6.047175]
[1755537538703,3.09,183.76,183.69,6.047175]
[1755537538894,3.94526537,183.75,183.66,6.047175]
[1755537539101,3.09,183.74,183.66,6.047175]
[1755537539299,3.09,183.74,183.7,2.24]
[1755537539602,3.09,183.76,183.7,2.24]
[1755537539906,3.09,183.74,183.71,2.24]
[1755537540388,3.09,183.76,183.69,3.807175]
[1755537540594,3.09,183.76,183.67,2.24]
[1755537540794,3.94628878,183.75,183.68,3.807175]
[1755537541000,3.09,183.76,183.7,5.4405]
[1755537541203,3.09,183.74,183.7,5.4405]
[1755537541499,3.09,183.74,183.69,2.24]
[1755537541693,3.09,183.76,183.72,5.4399]
[1755537542095,3.09,183.76,183.71,5.4403]
[1755537542300,3.09,183.76,183.69,2.24]
[1755537542794,3.09,183.76,183.71,5.4404]
[1755537542989,3.09,183.74,183.69,2.24]
[1755537543195,3.09,183.74,183.7,2.24]
[1755537543393,3.09,183.74,183.72,5.4399]
[1755537544207,53.09,183.77,183.71,2.24]
[1755537544398,53.09,183.77,183.71,6.047175]
[1755537544700,53.09,183.77,183.74,6.047175]
[1755537544893,3.09,183.78,183.75,5.4392]
[1755537546099,3.09,183.78,183.76,5.4388]
[1755537546406,3.09,183.82,183.75,2.24]
[1755537546604,3.94613063,183.81,183.75,2.24]
[1755537546902,3.09,183.83,183.77,3.807175]
[1755537547100,3.94582831,183.82,183.79,2.24]
[1755537547305,3.09,183.86,183.81,2.24]
[1755537547602,3.94390487,183.85,183.82,5.4369]
[1755537547799,3.09,183.86,183.82,5.4369]
[1755537548004,3.94381976,183.85,183.82,5.4369]
[1755537548195,3.09,183.85,183.82,5.4369]
[1755537548505,3.09,183.85,183.81,11.484575]
[1755537549502,139.79,183.89,183.82,2.24]
[1755537549704,3.94217423,183.88,183.82,2.24]
[1755537550004,7.03217423,183.87,183.83,2.24]
[1755537550204,3.94217423,183.86,183.83,2.24]
[1755537550404,136.7,183.89,183.84,2.24]
[1755537550601,7.03115237,183.88,183.84,2.24]
[1755537550802,7.03115237,183.87,183.81,3.807175]
[1755537551006,3.94115237,183.86,183.81,3.807175]
[1755537551205,3.09,183.85,183.81,6.047175]
[1755537551404,3.09,183.88,183.82,2.24]
[1755537551709,7.03084085,183.87,183.82,2.24]
[1755537551908,3.94084085,183.86,183.82,7.6771]
[1755537552105,136.7,183.89,183.82,7.6771]
[1755537552305,3.09,183.86,183.82,7.6771]
[1755537552705,3.09,183.86,183.82,5.4371]
[1755537553004,3.09,183.86,183.81,3.807175]
[1755537553204,3.09,183.86,183.82,2.24]
[1755537553707,136.7,183.89,183.81,9.244575]
[1755537553908,3.93967823,183.88,183.81,9.244575]
[1755537554108,3.93967823,183.87,183.81,9.244575]
[1755537554307,3.93967823,183.86,183.81,9.244575]
[1755537554609,136.7,183.89,183.81,9.244575]
[1755537554808,3.94044366,183.88,183.81,9.244575]
[1755537555009,136.7,183.89,183.81,9.244575]
[1755537555010,3.94044366,183.87,183.81,9.244575]
[1755537555210,3.94044366,183.86,183.81,9.244575]
[1755537555413,136.7,183.89,183.81,9.244575]
[1755537555616,3.94127003,183.88,183.81,9.244575]
[1755537555814,3.94127003,183.87,183.81,9.244575]
[1755537556003,3.94127003,183.86,183.81,9.244575]
[1755537556204,136.7,183.89,183.82,5.4371]
[1755537556411,3.94345208,183.88,183.81,3.807175]
[1755537556709,3.94345208,183.87,183.81,3.807175]
[1755537556910,3.94345208,183.86,183.81,3.807175]
[1755537557105,136.7,183.89,183.81,3.807175]
[1755537557300,3.9450939,183.88,183.81,9.244575]
[1755537557510,3.9450939,183.87,183.81,9.244575]
[1755537557713,3.9450939,183.86,183.82,5.4372]
[1755537557915,3.9450939,183.85,183.82,5.4372]
[1755537558105,136.7,183.89,183.82,5.4372]
[1755537558306,3.94653654,183.88,183.82,5.4372]
[1755537558513,3.94653654,183.87,183.82,5.4372]
[1755537558709,3.94653654,183.86,183.82,5.4372]
[1755537559006,3.94653654,183.85,183.82,5.4372]
[1755537559210,136.7,183.89,183.82,5.4372]
[1755537559515,3.94788953,183.88,183.82,5.4372]
[1755537559710,3.94788953,183.87,183.82,5.4372]
[1755537559905,3.94788953,183.86,183.82,5.4372]
[1755537560110,3.94788953,183.85,183.81,3.807175]
[1755537560315,136.7,183.89,183.81,3.807175]
[1755537560509,3.94845316,183.88,183.81,3.807175]
[1755537560711,3.94845316,183.87,183.81,3.807175]
[1755537561018,3.94845316,183.86,183.81,3.807175]
[1755537561221,3.94845316,183.85,183.82,5.4372]
[1755537561415,136.7,183.89,183.82,5.4372]
[1755537561720,3.9490837,183.88,183.82,5.4372]
[1755537561921,136.7,183.89,183.82,5.4372]
[1755537561922,3.9490837,183.87,183.82,5.4372]
[1755537562108,3.9490837,183.86,183.82,5.4372]
[1755537562314,3.9490837,183.85,183.82,5.4372]
[1755537562515,136.7,183.89,183.82,5.4372]
[1755537562715,3.94928183,183.88,183.82,5.4372]
[1755537562915,3.94928183,183.87,183.82,5.4372]
[1755537563118,3.94928183,183.86,183.82,5.4372]
[1755537563318,3.94928183,183.85,183.82,5.4372]
[1755537563519,136.7,183.89,183.82,5.4372]
[1755537563719,3.94938453,183.88,183.83,5.4369]
[1755537564018,3.94938453,183.87,183.83,5.4369]
[1755537564218,3.94938453,183.86,183.83,5.4369]
[1755537564421,3.94938453,183.85,183.83,5.4369]
[1755537564724,136.7,183.89,183.83,5.4369]
[1755537564922,3.9494662,183.88,183.83,5.4369]
[1755537565223,3.9494662,183.87,183.83,5.4369]
[1755537565425,3.9494662,183.86,183.83,5.4369]
[1755537565723,136.7,183.89,183.84,3.807175]
[1755537566021,3.9489226,183.88,183.84,3.807175]
[1755537566231,16.37,183.95,183.87,3.807175]
[1755537566232,5.98548313,183.95,183.87,3.807175]
[1755537566425,8.26802264,183.94,183.87,3.807175]
[1755537566626,3.9484975,183.93,183.87,3.807175]
[1755537566929,3.9484975,183.92,183.87,3.807175]
[1755537567122,136.44,183.96,183.91,5.4345]
[1755537567328,3.94680668,183.95,183.9,3.807175]
[1755537567530,3.94680668,183.94,183.9,3.807175]
[1755537567720,0.03527103,183.95,183.9,3.807175]
[1755537568028,3.94440316,183.94,183.9,3.807175]
[1755537568224,0.03527103,183.95,183.91,5.4344]
[1755537568420,0.03527103,183.95,183.91,9.241575]
[1755537568626,136.54,184.0,183.91,3.807175]
[1755537568823,8.25672863,183.99,183.91,3.807175]
[1755537569024,0.0395984,183.95,183.91,3.807175]
[1755537569224,3.94238345,183.94,183.91,3.807175]
[1755537570827,0.0395984,183.95,183.91,3.807175]
[1755537573234,0.0395984,183.95,183.91,9.241675]
[1755537574442,0.0395984,183.95,183.92,5.4343]
[1755537575023,0.0395984,183.95,183.94,3.807175]
[1755537575425,136.54,184.0,183.94,3.807175]
[1755537575628,3.93709768,183.99,183.94,9.240875]
[1755537575834,0.03780863,183.96,183.94,9.240875]
[1755537576033,0.03780863,183.96,183.94,3.807175]
[1755537576334,136.42,184.03,183.94,3.807175]
[1755537576526,0.04155026,183.97,183.94,3.807175]
[1755537576932,0.04155026,183.97,183.91,3.807175]
[1755537577326,16.37,184.03,183.91,3.807175]
[1755537577531,140.33586248,184.02,183.91,3.807175]
[1755537577733,0.03971731,183.96,183.91,3.807175]
[1755537578937,0.03971731,183.96,183.92,5.4342]
[1755537579231,0.03971731,183.96,183.91,3.807175]
[1755537579426,0.03971731,183.96,183.92,5.4342]
[1755537580134,0.03971731,183.96,183.93,5.434]
[1755537580633,0.03971731,183.96,183.92,2.23]
[1755537580835,0.03971731,183.96,183.91,3.807175]
[1755537581127,0.03971731,183.96,183.93,2.23]
[1755537581332,0.03971731,183.96,183.94,2.23]
[1755537581634,0.03971731,183.96,183.93,3.807175]
[1755537581835,0.03971731,183.96,183.94,2.23]
[1755537582037,3.14,183.98,183.94,2.23]
[1755537582231,136.3,184.02,183.93,9.241175]
[1755537582436,3.17596257,183.97,183.93,11.471175]
[1755537582629,3.17596257,183.97,183.93,3.807175]
[1755537582936,3.17596257,183.97,183.93,6.037175]
[1755537583131,3.14,183.96,183.93,2.23]
[1755537583431,3.14,183.96,183.92,6.037175]
[1755537583638,3.14,183.96,183.93,2.23]
[1755537584031,3.14,183.98,183.93,2.23]
[1755537584226,136.3,184.02,183.93,2.23]
[1755537584227,0.04047606,183.96,183.93,2.23]
[1755537584436,0.04047606,183.96,183.94,2.23]
[1755537584735,0.04047606,183.96,183.95,2.23]
[1755537585138,0.04047606,183.96,183.95,6.037175]
[1755537585532,0.04047606,183.96,183.95,11.470575]
[1755537586240,0.04047606,183.96,183.95,6.037175]
[1755537586937,0.04047606,183.96,183.95,11.470575]
[1755537588532,3.14,184.03,183.95,6.037175]
[1755537588740,3.14,184.01,183.95,3.807175]
[1755537589038,3.14,183.99,183.95,3.807175]
[1755537589241,3.14,183.98,183.95,6.037175]
[1755537589638,3.14,183.98,183.95,11.470575]
[1755537589842,3.14,183.98,183.95,11.51161195]
[1755537590234,3.14,183.98,183.95,6.07821195]
[1755537590435,3.14,184.04,183.95,3.84821195]
[1755537590636,3.14,184.02,183.95,3.84821195]
[1755537590832,3.14,184.0,183.95,3.84821195]
[1755537591138,7.08905151,183.99,183.95,6.07821195]
[1755537591334,3.95036094,183.98,183.95,3.84821195]
[1755537591533,3.14,184.01,183.97,2.23]
[1755537591833,7.08999229,184.0,183.97,2.23]
[1755537592031,3.94999229,183.99,183.97,2.23]
[1755537592229,3.94999229,183.99,183.97,2.27062716]
[1755537593039,3.04,184.0,183.97,7.70332716]
[1755537593240,3.95020651,183.99,183.97,2.27062716]
[1755537593441,3.04,184.0,183.97,2.27062716]
[1755537593641,3.95044356,183.99,183.97,2.27062716]
[1755537593843,3.04,184.0,183.97,2.27062716]
[1755537594144,3.9504426,183.99,183.97,2.27062716]
[1755537594440,3.04,184.03,183.97,2.27062716]
[1755537594636,3.04,184.01,183.97,7.70342716]
[1755537594838,142.24548313,184.06,183.97,0.04062716]
[1755537594839,3.04,183.99,183.97,0.04062716]
[1755537595138,3.04,184.05,183.97,0.04062716]
[1755537595336,3.04,184.03,183.97,0.04062716]
[1755537595644,3.04,184.0,183.97,0.04062716]
[1755537595832,3.95083168,183.99,183.97,0.04062716]
[1755537596244,3.04,184.0,183.97,0.04062716]
[1755537596540,3.95131961,183.99,183.97,2.27062716]
[1755537596741,3.04,184.0,183.97,2.27062716]
[1755537596942,3.95131961,183.99,183.97,2.27062716]
[1755537597137,3.04,184.0,183.97,7.70332716]
[1755537597542,3.04,184.0,183.97,2.27062716]
[1755537597736,3.04,183.98,183.97,0.04062716]
[1755537598547,142.24548313,184.06,183.97,0.04062716]
[1755537598746,14.03956245,184.05,183.97,0.04062716]
[1755537599046,3.04,184.03,183.97,0.04062716]
[1755537599246,3.04,184.01,183.97,0.04062716]
[1755537599445,3.04,183.99,183.97,0.04062716]
[1755537600243,3.04,183.98,183.97,0.04062716]
[1755537600445,3.04,183.98,183.89,120.60653157]
[1755537600446,3.04,183.95,183.92,3.807175]
[1755537600644,3.04,183.95,183.92,6.077175]
[1755537600842,3.04,183.99,183.92,6.077175]
[1755537601046,3.95419457,183.98,183.95,3.807175]
[1755537601252,3.04,183.98,183.95,11.510375]
[1755537601444,6.99511866,183.97,183.93,3.807175]
[1755537601645,0.0353081,183.98,183.93,3.807175]
[1755537601944,3.04,183.96,183.93,3.807175]
[1755537602539,3.04,183.97,183.93,3.807175]
[1755537602743,3.04,183.97,183.94,2.27]
[1755537602938,3.0753081,183.98,183.94,2.27]
[1755537603338,3.0753081,183.98,183.95,5.4332]
[1755537603649,3.04,183.96,183.93,6.077175]
[1755537603951,3.04,183.96,183.93,3.807175]
[1755537604152,3.04,183.96,183.93,6.077175]
[1755537604538,0.0353081,183.98,183.93,3.807175]
[1755537604739,6.99952201,183.97,183.94,2.27]
[1755537604940,3.04,183.97,183.94,2.27]
[1755537605138,0.0353081,183.98,183.93,9.241075]
[1755537605338,3.04,183.97,183.93,9.241075]
[1755537605544,0.0353081,183.98,183.93,3.807175]
[1755537605745,3.04,183.96,183.93,0.03937062]
[1755537606048,3.04,183.94,183.84,3.807175]
[1755537606242,3.96301226,183.93,183.84,3.807175]
[1755537606445,3.96301226,183.93,183.75,10.8782]
[1755537606446,3.04,183.91,183.78,3.807175]
[1755537606646,3.04,183.91,183.75,2.31]
[1755537606647,9.02548313,183.88,183.76,3.807175]
[1755537606842,9.02548313,183.88,183.73,121.49896165]
[1755537606843,3.04,183.85,183.73,3.807175]
[1755537607051,3.04,183.83,183.73,3.807175]
[1755537607250,3.04,183.84,183.8,3.807175]
[1755537607442,0.03683948,183.81,183.8,3.807175]
[1755537607648,3.04,183.88,183.8,3.807175]
[1755537607846,3.96347614,183.87,183.8,3.807175]
[1755537608147,3.04,183.88,183.83,2.31]
[1755537608343,3.04,183.86,183.85,3.807175]
[1755537608947,3.96308345,183.86,183.82,3.807175]
[1755537609252,3.04,183.83,183.82,3.807175]
[1755537609751,3.04,183.83,183.77,2.31]
[1755537609959,3.04,183.83,183.8,3.807175]
[1755537610452,3.04,183.83,183.81,5.4375]
[1755537610652,3.04,183.86,183.81,5.4375]
[1755537610853,3.04,183.91,183.81,5.4375]
[1755537611044,3.04,183.89,183.82,5.4371]
[1755537611250,7.00260241,183.88,183.83,6.117175]
[1755537611446,3.04,183.93,183.83,6.117175]
[1755537611642,3.04,183.91,183.83,11.553875]
[1755537611845,3.04,183.89,183.83,9.243875]
[1755537612046,3.04,183.87,183.83,9.243875]
[1755537612252,3.04,183.92,183.83,9.243875]
[1755537612458,3.04,183.9,183.79,2.31]
[1755537612755,3.04,183.88,183.81,3.807175]
[1755537613048,3.04,183.86,183.82,5.437]
[1755537613354,3.04,183.86,183.82,2.31]
[1755537613856,3.04,183.88,183.78,2.31]
[1755537614053,19.41,183.86,183.75,3.807175]
[1755537614252,3.04,183.84,183.74,5.4394]
[1755537614547,3.04,183.82,183.72,3.807175]
[1755537614762,3.04,183.8,183.72,3.807175]
[1755537615347,16.37,183.82,183.72,3.807175]
[1755537615542,3.04,183.8,183.72,3.807175]
[1755537615956,3.04,183.8,183.72,9.247175]
[1755537616154,3.04,183.8,183.72,3.807175]
[1755537616349,3.04,183.8,183.69,2.31]
[1755537616350,3.04,183.8,183.71,5.4403]
[1755537616553,3.04,183.78,183.68,5.98673014]
[1755537616856,3.04,183.76,183.64,2.31]
[1755537617053,3.94173717,183.75,183.67,5.4416]
[1755537617250,3.04,183.74,183.67,5.4416]
[1755537617450,3.04,183.74,183.64,2.31]
[1755537618053,3.04,183.72,183.64,2.31]
[1755537618353,3.93296963,183.71,183.6,2.31]
[1755537618549,3.04,183.69,183.6,2.31]
[1755537618750,0.03559977,183.7,183.66,0.04136817]
[1755537618951,3.04,183.67,183.66,0.04136817]
[1755537619150,0.03559977,183.7,183.66,0.04136817]
[1755537619459,3.04,183.69,183.66,0.04136817]
[1755537619761,0.03559977,183.7,183.66,0.04136817]
[1755537620055,3.07559977,183.7,183.66,0.04136817]
[1755537620255,3.04,183.69,183.66,0.04136817]
[1755537620444,0.03559977,183.7,183.66,0.04136817]
[1755537620954,3.07559977,183.7,183.66,0.04136817]
[1755537621355,3.04,183.69,183.66,0.04136817]
[1755537621953,0.03559977,183.7,183.66,0.04136817]
[1755537622146,0.03559977,183.7,183.66,7.80306817]
[1755537622345,0.03559977,183.7,183.69,2.32]
[1755537622958,0.03559977,183.7,183.69,7.7611]
[1755537623457,139.26,183.77,183.69,2.32]
[1755537624050,139.26,183.77,183.67,5.98673014]
[1755537624455,139.26,183.77,183.68,2.32]
[1755537624655,139.26,183.77,183.7,0.04111767]
[1755537626159,2.92,183.76,183.7,0.04111767]
[1755537627457,52.92,183.76,183.7,0.04111767]
[1755537628959,2.92,183.75,183.7,0.04111767]
[1755537629155,50.0,183.76,183.7,0.04111767]
[1755537629360,2.92,183.75,183.7,0.04111767]
[1755537629754,50.0,183.76,183.7,0.04111767]
[1755537630154,2.92,183.71,183.7,0.04111767]
[1755537630355,50.0,183.75,183.7,0.04111767]
[1755537630655,50.0,183.74,183.7,2.36111767]
[1755537631351,52.92,183.74,183.7,2.36111767]
[1755537631956,50.0,183.74,183.7,0.04111767]
[1755537632157,2.92,183.73,183.7,0.04111767]
[1755537632759,50.0,183.74,183.7,2.36111767]
[1755537633463,50.0,183.74,183.7,0.04111767]
[1755537633464,2.92,183.73,183.7,0.04111767]
[1755537633667,2.92,183.71,183.7,0.04111767]
[1755537634661,50.0,183.74,183.7,0.04111767]
[1755537634861,2.92,183.73,183.7,0.04111767]
[1755537635058,50.0,183.74,183.7,0.04111767]
[1755537635263,2.92,183.73,183.7,0.04111767]
[1755537636062,50.0,183.74,183.7,0.04111767]
[1755537636265,2.92,183.73,183.7,0.04111767]
[1755537636770,2.92,183.72,183.7,0.04111767]
[1755537636956,50.0,183.74,183.7,0.04111767]
[1755537636957,52.92,183.74,183.7,0.04111767]
[1755537637160,2.92,183.73,183.7,0.04111767]
[1755537639064,2.92,183.71,183.7,0.04111767]
[1755537639770,139.04,183.71,183.7,0.04111767]
[1755537641369,136.12,183.71,183.7,0.04111767]
[1755537641774,50.0,183.74,183.7,0.04111767]
[1755537641966,136.08,183.73,183.7,0.04111767]
[1755537642867,186.04,183.78,183.71,6.12023229]
[1755537643069,3.91798073,183.77,183.74,6.12023229]
[1755537643266,136.04,183.78,183.74,3.80023229]
[1755537643469,136.04,183.78,183.77,3.80023229]
[1755537643663,50.0,183.83,183.77,3.80023229]
[1755537643664,136.18,183.83,183.78,2.32]
[1755537643968,3.91856848,183.82,183.76,3.80023229]
[1755537644172,3.91856848,183.81,183.73,6.12023229]
[1755537644470,6.83856848,183.8,183.77,0.03427858]
[1755537644668,3.91856848,183.79,183.77,0.03427858]
[1755537645470,6.83856848,183.79,183.77,0.03427858]
[1755537645776,3.9233976,183.78,183.77,0.03427858]
[1755537646274,155.47,183.83,183.77,0.03427858]
[1755537646474,2.92,183.81,183.77,0.03427858]
[1755537646664,3.92392527,183.8,183.77,0.03427858]
[1755537646866,3.92392527,183.79,183.77,0.03427858]
[1755537647076,3.92392527,183.78,183.77,0.03427858]
[1755537647274,6.84392527,183.8,183.77,0.03427858]
[1755537647467,6.84392527,183.79,183.77,0.03427858]
[1755537647667,6.84392527,183.78,183.77,0.03427858]
[1755537648870,3.92392527,183.78,183.77,0.03427858]
[1755537649473,3.92392527,183.78,183.77,5.47297858]
[1755537649678,136.18,183.83,183.77,2.35427858]
[1755537649875,3.93848449,183.82,183.77,2.35427858]
[1755537650071,3.93848449,183.81,183.77,2.35427858]
[1755537650273,3.93848449,183.8,183.77,0.03427858]
[1755537650471,6.85848449,183.79,183.77,0.03427858]
[1755537650678,3.93848449,183.78,183.77,0.03427858]
[1755537652673,3.93848449,183.78,183.77,2.35427858]
[1755537652981,3.93848449,183.78,183.77,0.03427858]
[1755537654481,6.90848449,183.78,183.77,0.03427858]
[1755537654884,13.9786165,183.78,183.77,0.03427858]
[1755537655080,11.23815768,183.78,183.77,0.03427858]
[1755537655279,11.24005029,183.78,183.77,0.03427858]
[1755537656186,6.90848449,183.78,183.77,0.03427858]
[1755537656380,13.98177964,183.78,183.77,0.03427858]
[1755537657385,6.90848449,183.78,183.77,0.03427858]
[1755537657573,13.99014637,183.78,183.77,0.03427858]
[1755537658185,13.99042349,183.78,183.77,0.03427858]
[1755537658580,11.02042349,183.78,183.77,0.03427858]
[1755537658785,6.68543148,183.78,183.77,0.03427858]
[1755537658981,5.98548313,183.89,183.77,2.89427858]